Cogmind - Beta 12 @@@ ROGUE MODE // 2023.10.26 @ 22:59:38 Player: FrostySpirit Result: Destroyed by S-27 Virus with Autogun Performance ------------- Evolutions (4) 2000 Regions Visited (10) 2000 Robots Destroyed (40) 200 Value Destroyed (1041) 1041 Prototype IDs (6) 120 Alien Tech Used (0) 0 Bonus (566) 566 TOTAL SCORE: 5927 Bonus ------- High Alert Combat Kills 66 Entered DSFs 500 Cogmind --------- Core Integrity 0/850 Matter 284/300 Energy 99/100 System Corruption 3% Temperature Cool (0) Movement Core (50) Location -6/Lower Caves Parts ------- > --- POWER (2) -------- (None) > --- PROPULSION (4) --- (None) > --- UTILITY (7) ------ Enhanced Optical Array Enhanced Optical Array Authchip [R/Combat] Authchip [Device] > --- WEAPON (2) ------- (None) > --- INVENTORY (5) ---- Cesium-ion Thruster Cesium-ion Thruster Drone Bay (2/2) Drone Bay (2/2) Peak State ------------ > --- POWER ------------ (None) > --- PROPULSION ------- Improved Titanium Leg Improved Titanium Leg Improved Titanium Leg Improved Titanium Leg > --- UTILITY ---------- Enhanced Optical Array Enhanced Optical Array Improved Targeting Computer Improved Particle Charger Kinecellerator Authchip [Device] Authchip [Processor] > --- WEAPON ----------- Heavy Plasma Cannon Heavy Flak Cannon > --- INVENTORY -------- Improved Titanium Leg Improved Titanium Leg Authchip [R/Combat] Drone Bay Drone Bay [Rating: 57] Favorites ----------- Power Light Ion Engine Engine Light Ion Engine Propulsion Improved Titanium Leg Treads Light Treads Leg Improved Titanium Leg Wheel Wheel Hover Unit Combat Airjet Flight Unit Flight Unit Utility Enhanced Optical Array Device Drone Bay Storage Small Storage Unit Processor Enhanced Optical Array Hackware Authchip [Device] Protection Medium Armor Plating Weapon Medium Laser Energy Gun Medium Laser Energy Cannon Heavy Plasma Cannon Ballistic Gun Assault Rifle Ballistic Cannon Heavy Flak Cannon Launcher Mini Grenade Launcher Special Weapon Welding Torch Impact Weapon Shock Maul Piercing Weapon Heavy Pick Build | -11 -10 -9 -9 -8 -8 -7 -7 -6 -6 -6 ------- Run | Jun Mat Mat Min Mat Sto Fac DSF Fac Low Low Slots Evolved 8 | . . 2 . 2 . 2 . 2 . . Power 1 | . . . . . . 1 . . . . Propulsion 2 | . . . . 2 . . . . . . Utility 5 | . . 2 . . . 1 . 2 . . Weapon . | . . . . . . . . . . . Parts Attached 92 | 6 1 3 6 10 24 5 8 21 7 1 Power 7 | 1 . 1 1 . 3 . . 1 . . Engine 7 | 1 . 1 1 . 3 . . 1 . . Core . | . . . . . . . . . . . Reactor . | . . . . . . . . . . . Propulsion 22 | 2 . . 2 3 6 1 . 6 2 . Treads 3 | . . . 2 . 1 . . . . . Leg 7 | . . . . . 1 . . 4 2 . Wheel 3 | 2 . . . . 1 . . . . . Hover 4 | . . . . 3 . . . 1 . . Flight 5 | . . . . . 3 1 . 1 . . Utility 35 | 1 1 2 2 2 11 2 5 6 2 1 Device 19 | . . 1 2 1 6 2 2 4 1 . Storage 3 | 1 . . . . 1 . . . 1 . Processor 7 | . 1 . . 1 3 . . 2 . . Hackware 4 | . . . . . . . 3 . . 1 Protection 2 | . . 1 . . 1 . . . . . Artifact . | . . . . . . . . . . . Weapon 28 | 2 . . 1 5 4 2 3 8 3 . Energy Gun 7 | 1 . . . 2 . 2 . 1 1 . Energy Cannon 5 | . . . . . 2 . . 3 . . Ballistic Gun 5 | 1 . . 1 . 2 . . . 1 . Ballistic Cannon 4 | . . . . 2 . . . 2 . . Launcher 1 | . . . . 1 . . . . . . Special Weapon 1 | . . . . . . . . 1 . . Impact Weapon 1 | . . . . . . . . 1 . . Slashing Weapon . | . . . . . . . . . . . Piercing Weapon 4 | . . . . . . . 3 . 1 . Special Melee Weapon . | . . . . . . . . . . . Unidentified Prototypes 6 | . . . . 1 . 2 . 3 . . Parts Lost 45 | . . . 1 6 17 . 4 4 13 . Power 5 | . . . . 1 3 . . . 1 . Propulsion 13 | . . . . 2 5 . 1 . 5 . Utility 17 | . . . 1 2 5 . 2 3 4 . Weapon 10 | . . . . 1 4 . 1 1 3 . Highest Loss Streak 8 | . . . 1 6 8 . 4 2 8 . To Critical Strikes . | . . . . . . . . . . . Average Slot Usage (%) 65 | . 95 99 99 84 56 39 33 64 52 . Engine 4 | . 14 11 11 8 4 . . . 3 . Treads 2 | . . . 17 . 1 . . . . . Leg 4 | . . . . . . . . 8 15 . Wheel 2 | . 28 22 4 . . . . . . . Hover 3 | . . . . 23 5 . . 2 . . Flight 2 | . . . . . 5 2 1 2 . . Device 7 | . . 11 11 7 8 11 3 11 . . Storage 4 | . 14 11 11 9 8 . . . . . Processor 14 | . 10 11 11 18 8 23 17 17 16 . Hackware 4 | . . . . . . . 5 13 9 . Protection 1 | . . 10 10 . . . . . . . Energy Gun 3 | . 14 11 11 9 3 1 1 . . . Ballistic Gun 3 | . 14 11 11 . 3 . . . . . Ballistic Cannon 1 | . . . . 6 . . . 1 3 . Launcher 1 | . . . . 2 5 . . . . . Naked Turns . | . . . . . . . . . . . Heaviest Build 26 | 14 14 20 24 19 24 11 6 26 15 . Greatest Support 80 | 20 20 20 40 27 20 6 6 80 40 3 Greatest Overweight (x) 8 | . . . . . 4 2 . 8 4 . Average Overweight (x) . | . . . . . . . . . . . Largest Inventory Capacity 8 | 8 8 8 8 8 8 5 5 5 5 5 Average Capacity 6 | 6 8 8 8 8 7 5 5 5 5 5 Most Carried 8 | 6 8 8 8 8 8 5 5 5 5 4 Average Carried 5 | 2 6 7 7 5 7 4 4 4 4 4 Final Capacity 8 | 8 8 8 8 8 5 5 5 5 5 5 Final Carried 8 | 6 8 8 8 4 5 5 5 5 5 4 Class Distribution -------------------- 85% | Mutant 10% | Scavenger-Mutant 4% | Scavenger-Scout Dominant Class ---------------- Mutant | -10/Materials Mutant | -9/Materials Mutant | -9/Mines Scavenger-Scout | -8/Materials Mutant | -8/Storage Mutant | -7/Factory Mutant | -7/DSF Mutant | -6/Factory Mutant | -6/Lower Caves Mutant | -6/Lower Caves Resources | -11 -10 -9 -9 -8 -8 -7 -7 -6 -6 -6 ----------- Run | Jun Mat Mat Min Mat Sto Fac DSF Fac Low Low Matter Collected 1318 | 260 3 31 31 129 365 . 43 321 135 . Remotely 59 | . . . . 59 . . . . . . Salvage Created 1028 | . 84 31 . 70 664 . 41 78 60 . Parts 70 | . 7 3 . . 51 . 2 5 2 . Haulers Intercepted 1 | . . . . . 1 . . . . . Recyclers Shooed 2 | . . . . . 1 . . 1 . . Parts Field Recycled . | . . . . . . . . . . . Retrieved Matter . | . . . . . . . . . . . Parts Self-Destructed 4 | . . . . . . . . . 4 . Prevented . | . . . . . . . . . . . Kills | -11 -10 -9 -9 -8 -8 -7 -7 -6 -6 -6 ------- Run | Jun Mat Mat Min Mat Sto Fac DSF Fac Low Low Combat Hostiles Destroyed 26 | . . 1 . 1 18 . 2 2 2 . Melee 2 | . . . . . . . 2 . . . Guns 10 | . . 1 . 1 7 . . . 1 . Cannons 3 | . . . . . . . . 2 1 . AOE 11 | . . . . . 11 . . . . . Classes Destroyed 11 | . 2 1 . . 5 . 1 1 1 . Worker 3 | . . . . . 2 . . 1 . . Builder 5 | . . . . . 5 . . . . . Hauler 1 | . . . . . 1 . . . . . Recycler 3 | . 1 . . . 2 . . . . . Watcher 2 | . 1 . . . 1 . . . . . Swarmer 8 | . . . . . 7 . . . 1 . Cutter 2 | . . . . . . . 2 . . . Grunt 7 | . . 1 . 1 5 . . . . . Brawler 1 | . . . . . . . . . 1 . Sentry 7 | . . . . . 6 . . 1 . . Programmer 1 | . . . . . . . . 1 . . Best Kill Streak 10 | . 1 1 . 1 10 . 2 2 1 . Combat Bots Only 8 | . . 1 . 1 8 . 2 1 1 . Max Kills in Single Turn 3 | . 1 1 . 1 3 . 1 2 1 . Gunslinging . | . . . . . . . . . . . Exploded 3 | . . . . . 3 . . . . . Melee 1 | . . . . . . . 1 . . . Uniques/NPCs Destroyed . | . . . . . . . . . . . Combat | -11 -10 -9 -9 -8 -8 -7 -7 -6 -6 -6 -------- Run | Jun Mat Mat Min Mat Sto Fac DSF Fac Low Low Damage Taken 6028 | . 48 47 401 358 1809 . 744 1242 1341 38 Core 1992 | . . . . 47 486 . 601 204 616 38 Absorbed by Shields 6 | . . . . . . . 6 . . . Core Remaining (%) 63 | 100 100 . 100 . 3 . 14 . . . Volleys Fired 88 | . 8 3 . 8 47 . . 12 10 . Largest 2 | . 2 2 . 2 2 . . 2 1 . Hottest 143 | . 70 70 . 111 91 . . 143 53 . Shots Fired 136 | . 16 6 . 16 69 . . 19 10 . Gun 85 | . 16 6 . 16 45 . . . 2 . Cannon 31 | . . . . . 4 . . 19 8 . Launcher 20 | . . . . . 20 . . . . . Special . | . . . . . . . . . . . Kinetic 58 | . 8 3 . . 30 . . 7 10 . Thermal 46 | . 8 3 . 8 15 . . 12 . . Explosive 20 | . . . . . 20 . . . . . Electromagnetic 12 | . . . . 8 4 . . . . . Robot Hit Streak 20 | . 2 1 . 6 12 . . 20 6 . Robot Miss Streak 5 | . 4 2 . 1 3 . . 4 5 . Penetration Max . | . . . . . . . . . . . Secondary Targets . | . . . . . . . . . . . Shots Hit Robots 97 | . 6 2 . 12 44 . 4 17 12 . Core Hits 83 | . 3 2 . 3 49 . 2 15 9 . Critical Kills . | . . . . . . . . . . . Critical Parts Destroyed . | . . . . . . . . . . . Critical Strikes 3 | . . 1 . 1 1 . . . . . Burn 2 | . . 1 . . 1 . . . . . Corrupt 1 | . . . . 1 . . . . . . Melee Attacks 10 | . . . . . . . 7 . 3 . Impact . | . . . . . . . . . . . Slashing . | . . . . . . . . . . . Piercing 10 | . . . . . . . 7 . 3 . Sneak Attacks . | . . . . . . . . . . . Combat Hostiles . | . . . . . . . . . . . Follow-up Attacks . | . . . . . . . . . . . Damage Inflicted 3572 | . 74 25 . 230 2189 . 133 599 322 . Guns 838 | . 74 25 . 230 487 . . . 22 . Cannons 841 | . . . . . 81 . . 562 198 . Explosions 1649 | . . . . . 1620 . . 29 . . Melee 218 | . . . . . . . 116 . 102 . Ramming 26 | . . . . . 1 . 17 8 . . Kinetic 782 | . 50 . . . 287 . . 225 220 . Thermal 705 | . 24 25 . 80 239 . . 337 . . Explosive 1581 | . . . . . 1581 . . . . . Electromagnetic 260 | . . . . 150 81 . . 29 . . Impact . | . . . . . . . . . . . Slashing . | . . . . . . . . . . . Piercing 218 | . . . . . . . 116 . 102 . Highest Corruption 3 | . . . . . . . . . 3 3 Average Corruption 3 | . . . . . . . . . 3 3 Corruption Purged . | . . . . . . . . . . . Corruption Blocked . | . . . . . . . . . . . Effects 6 | . . . . . . . . . 6 . Message Errors 2 | . . . . . . . . . 2 . Matter Fused 1 | . . . . . . . . . 1 . Heat Flow Errors 1 | . . . . . . . . . 1 . Energy Discharges 1 | . . . . . . . . . 1 . Data Loss (minor) 1 | . . . . . . . . . 1 . Overload Shots . | . . . . . . . . . . . Overflow Damage 52 | . . . . . 52 . . . . . Projectiles . | . . . . . . . . . . . Explosions 52 | . . . . . 52 . . . . . Melee . | . . . . . . . . . . . Knockbacks 5 | . . . . . . . . 1 4 . Impact . | . . . . . . . . . . . Kinetic 4 | . . . . . . . . 1 3 . Secondary 1 | . . . . . . . . . 1 . Self-Inflicted Damage 194 | . . . . . 177 . 8 9 . . Shots 5 | . . . . . 4 . . 1 . . Rammed 4 | . . . . . 1 . 2 1 . . Targets Rammed 6 | . . . . . 1 . 2 3 . . Kicked 2 | . . . . . . . . 2 . . Crushed . | . . . . . . . . . . . Highest Temperature 286 | . 27 59 . 286 210 . . 250 265 . Average Temperature 76 | . 10 38 . 151 54 . . 53 160 . Received Heat Transfer 1755 | . 45 18 . 135 792 . . 216 549 . Siege Activations . | . . . . . . . . . . . Robots Corrupted . | . . . . . . . . . . . Combat Hostiles . | . . . . . . . . . . . Parts Fried 3 | . . . . 3 . . . . . . Impact Corruptions . | . . . . . . . . . . . Robots Melted . | . . . . . . . . . . . Combat Hostiles . | . . . . . . . . . . . Parts Melted 1 | . . . . . 1 . . . . . Heat Transferred 1364 | . 74 148 . 148 494 . . 500 . . Parts Sabotaged . | . . . . . . . . . . . Parts Stolen . | . . . . . . . . . . . Parts Stripped . | . . . . . . . . . . . Power Chain Reactions 1 | . . . . . 1 . . . . . Missiles Intercepted . | . . . . . . . . . . . Alert | -11 -10 -9 -9 -8 -8 -7 -7 -6 -6 -6 ------- Run | Jun Mat Mat Min Mat Sto Fac DSF Fac Low Low Peak Influence 655 | . 28 76 29 45 655 238 203 147 . . Initial 238 | . . 11 29 . 5 238 163 106 . . Average 157 | . 19 31 26 13 343 236 164 77 . . Maximum Alert Level 2 | . . . . . 2 1 1 . . . Low Security (%) 71 | 100 100 100 100 100 35 . 90 100 . . Level 1 8 | . . . . . 1 100 9 . . . Level 2 19 | . . . . . 63 . . . . . Level 3 . | . . . . . . . . . . . Level 4 . | . . . . . . . . . . . Level 5 . | . . . . . . . . . . . High Security . | . . . . . . . . . . . Max Security . | . . . . . . . . . . . Squads Dispatched 7 | . . 1 . . 3 . 2 1 . . Investigation . | . . . . . . . . . . . Extermination 1 | . . . . . . . . 1 . . Reinforcement 3 | . . 1 . . . . 2 . . . Assault . | . . . . . . . . . . . Garrison 3 | . . . . . 3 . . . . . Intercept . | . . . . . . . . . . . Searches Triggered . | . . . . . . . . . . . Construction Impeded . | . . . . . . . . . . . Haulers Reinforced . | . . . . . . . . . . . Active Scanning Responses . | . . . . . . . . . . . Cargo Convoy Interrupts . | . . . . . . . . . . . Stealth | -11 -10 -9 -9 -8 -8 -7 -7 -6 -6 -6 --------- Run | Jun Mat Mat Min Mat Sto Fac DSF Fac Low Low Distress Signals 2 | . . 1 . . 1 . . . . . Communications Jammed . | . . . . . . . . . . . Distress Signals . | . . . . . . . . . . . Times Spotted 89 | . 3 5 12 9 28 . 9 9 10 4 Peak Tracking Total 9 | . 2 4 9 6 8 . 5 4 4 4 Tactical Retreats 9 | . . . . 1 3 . 2 . 3 . Traps | -11 -10 -9 -9 -8 -8 -7 -7 -6 -6 -6 ------- Run | Jun Mat Mat Min Mat Sto Fac DSF Fac Low Low Traps Triggered 3 | . . . 1 . 2 . . . . . Indirectly . | . . . . . . . . . . . Trap Hack Attempts . | . . . . . . . . . . . Triggered . | . . . . . . . . . . . Disarmed . | . . . . . . . . . . . Reprogrammed . | . . . . . . . . . . . Reused . | . . . . . . . . . . . Traps Extracted . | . . . . . . . . . . . Installed . | . . . . . . . . . . . Triggered 1 | . . . . . . . . . 1 . Machines | -11 -10 -9 -9 -8 -8 -7 -7 -6 -6 -6 ---------- Run | Jun Mat Mat Min Mat Sto Fac DSF Fac Low Low Machines Disabled 7 | . . . . . 5 . . 2 . . Max in Single Turn 2 | . . . . . 1 . . 2 . . Machines Repaired . | . . . . . . . . . . . Machines Sabotaged . | . . . . . . . . . . . Overloaded Fab Kills . | . . . . . . . . . . . Hacking | -11 -10 -9 -9 -8 -8 -7 -7 -6 -6 -6 --------- Run | Jun Mat Mat Min Mat Sto Fac DSF Fac Low Low Machines Accessed 7 | . 1 . 1 . 2 2 . 1 . . Terminals 5 | . 1 . . . 2 1 . 1 . . Fabricators . | . . . . . . . . . . . Repair Stations . | . . . . . . . . . . . Recycling Units 1 | . . . . . . 1 . . . . Scanalyzers . | . . . . . . . . . . . Garrison Access . | . . . . . . . . . . . Total Hacks 16 | . 7 . 1 . 2 3 . 3 . . Successful 10 | . 3 . 1 . 2 3 . 1 . . Failed 6 | . 4 . . . . . . 2 . . Catastrophic . | . . . . . . . . . . . Database Lockouts . | . . . . . . . . . . . Manual . | . . . . . . . . . . . Terminals 13 | . 7 . . . 2 1 . 3 . . Fabricators . | . . . . . . . . . . . Repair Stations . | . . . . . . . . . . . Recycling Units 2 | . . . . . . 2 . . . . Scanalyzers . | . . . . . . . . . . . Garrison Access . | . . . . . . . . . . . Terminal Hacks 8 | . 3 . 1 . 2 1 . 1 . . Open Door 3 | . . . 1 . 2 . . . . . Open DSF 1 | . . . . . . 1 . . . . Alert Level 1 | . 1 . . . . . . . . . Maintenance Status 1 | . 1 . . . . . . . . . Hauler Manifests 1 | . 1 . . . . . . . . . Zone Layout 1 | . . . . . . . . 1 . . Fabricator Hacks . | . . . . . . . . . . . Repair Station Hacks . | . . . . . . . . . . . Recycling Unit Hacks 2 | . . . . . . 2 . . . . Report Inventory 1 | . . . . . . 1 . . . . Retrieve Components 1 | . . . . . . 1 . . . . Scanalyzer . | . . . . . . . . . . . Garrison Access Hacks . | . . . . . . . . . . . Unauthorized Hacks . | . . . . . . . . . . . Terminals . | . . . . . . . . . . . Fabricators . | . . . . . . . . . . . Repair Stations . | . . . . . . . . . . . Recycling Units . | . . . . . . . . . . . Scanalyzers . | . . . . . . . . . . . Garrison Access . | . . . . . . . . . . . Data Cores Recovered . | . . . . . . . . . . . Used . | . . . . . . . . . . . Hacking Detections 2 | . . . . . . 1 . 1 . . Full Trace Events . | . . . . . . . . . . . Feedback Events . | . . . . . . . . . . . Feedback Blocked . | . . . . . . . . . . . Robot Schematics Acquired . | . . . . . . . . . . . Robots Built . | . . . . . . . . . . . Authchips . | . . . . . . . . . . . Time . | . . . . . . . . . . . Total Robot Build Rating . | . . . . . . . . . . . Part Schematics Acquired . | . . . . . . . . . . . Parts Built . | . . . . . . . . . . . Authchips . | . . . . . . . . . . . Time . | . . . . . . . . . . . Total Part Build Rating . | . . . . . . . . . . . Parts Repaired . | . . . . . . . . . . . Time . | . . . . . . . . . . . Parts Recycled . | . . . . . . . . . . . Recycled Matter . | . . . . . . . . . . . Retrieved Matter . | . . . . . . . . . . . Retrieved Components 1 | . . . . . . 1 . . . . Parts Scanalyzed . | . . . . . . . . . . . Part Schematics Acquired . | . . . . . . . . . . . Parts Damaged . | . . . . . . . . . . . Bothacking | -11 -10 -9 -9 -8 -8 -7 -7 -6 -6 -6 ------------ Run | Jun Mat Mat Min Mat Sto Fac DSF Fac Low Low Used RIF Installer . | . . . . . . . . . . . Robots Hacked . | . . . . . . . . . . . Non-combat . | . . . . . . . . . . . Combat . | . . . . . . . . . . . Robot Hacks Applied . | . . . . . . . . . . . Relay Couplers Released . | . . . . . . . . . . . Fabnet Peak Effective % . | . . . . . . . . . . . Robots Rewired . | . . . . . . . . . . . Allies Hacked . | . . . . . . . . . . . Hacks Repelled . | . . . . . . . . . . . Allies | -11 -10 -9 -9 -8 -8 -7 -7 -6 -6 -6 -------- Run | Jun Mat Mat Min Mat Sto Fac DSF Fac Low Low Total Allies 3 | . . . 3 . . . . . . . Largest Group 3 | . . . 3 . . . . . . . Highest-Rated Group 40 | . . . 40 . . . . . . . Highest-Rated Ally 16 | . . . 16 . . . . . . . Total Orders 8 | . . . 3 . 1 1 . 3 . . GUARD 3 | . . . 3 . . . . . . . EXPLORE 5 | . . . . . 1 1 . 3 . . Ally Attacks 4 | . . . 4 . . . . . . . Total Damage 28 | . . . 28 . . . . . . . Kills . | . . . . . . . . . . . Allies Corrupted . | . . . . . . . . . . . Allies Melted . | . . . . . . . . . . . Intel | -11 -10 -9 -9 -8 -8 -7 -7 -6 -6 -6 ------- Run | Jun Mat Mat Min Mat Sto Fac DSF Fac Low Low Robot Analysis Total . | . . . . . . . . . . . Derelict Logs Recovered 1 | . . . . . . . . . 1 . Drone Launches 10 | . . . . . 4 2 . 4 . . Drone Recoveries 4 | . . . . . 4 . . . . . Exploration | -11 -10 -9 -9 -8 -8 -7 -7 -6 -6 -6 ------------- Run | Jun Mat Mat Min Mat Sto Fac DSF Fac Low Low Turns Passed 2567 | 56 108 132 244 130 638 166 85 533 467 8 Spaces Moved 2083 | 53 99 114 157 111 397 217 109 374 439 13 Core 622 | 3 . . . . 132 60 68 93 253 13 Treads 157 | . . . 108 . 49 . . . . . Legs 275 | . . . . . 25 . . 64 186 . Wheels 317 | 50 99 114 49 . 5 . . . . . Hover 445 | . . . . 111 128 . . 206 . . Flight 267 | . . . . . 58 157 41 11 . . Fastest Speed 35 | 50 80 80 80 58 50 35 35 50 50 50 Average Speed 94 | 78 80 80 135 61 114 72 44 101 96 50 Slowest Speed 450 | 80 80 80 160 80 360 150 50 450 250 50 Overloaded Moves . | . . . . . . . . . . . Propulsion Burnouts . | . . . . . . . . . . . Robots Hopped 1 | . . . . . . 1 . . . . Cave-ins Triggered . | . . . . . . . . . . . Exploration Rate (%) 29 | 4 19 14 46 10 63 12 84 8 65 4 Regions Visited 10 Branch Regions 4 Pre-discovered Areas . | . . . . . . . . . . . Known Exits Taken 5 | . 1 1 1 1 . 1 . . . . Unknown Exits Taken 4 | 1 . . . . 1 . . 1 1 . Scrap Searched 3 | . . . 1 . . . . . 2 . Spaces Dug . | . . . . . . . . . . . Terrain Destroyed 135 | . . . . . 134 . . 1 . . Melee . | . . . . . . . . . . . Projectile 2 | . . . . . 1 . . 1 . . AOE 133 | . . . . . 133 . . . . . Terrain Rammed . | . . . . . . . . . . . Walls Destroyed . | . . . . . . . . . . . Machines Disabled . | . . . . . . . . . . . Actions | -11 -10 -9 -9 -8 -8 -7 -7 -6 -6 -6 --------- Run | Jun Mat Mat Min Mat Sto Fac DSF Fac Low Low Total 2515 | 64 111 148 190 157 507 224 132 505 463 14 Wait 174 | . . 26 19 21 25 . . 82 1 . Move 2071 | 52 98 113 156 110 396 214 108 373 438 13 Hop 1 | . . . . . . 1 . . . . Pick Up 29 | 6 3 2 4 2 6 . 1 3 2 . Fast Attach 65 | 6 1 1 . 4 21 3 8 16 5 . Attach 21 | . . 1 1 6 3 2 . 5 2 1 Detach 5 | . . . . . . 3 . 2 . . Swap 6 | . . 1 5 . . . . . . . Drop 37 | . 1 1 5 6 8 1 4 9 2 . Fire 88 | . 8 3 . 8 47 . . 12 10 . Melee 10 | . . . . . . . 7 . 3 . Ram 4 | . . . . . 1 . 2 1 . . Kick 2 | . . . . . . . . 2 . . Crush . | . . . . . . . . . . . Escape Stasis . | . . . . . . . . . . . Rewire 2 | . . . . . . . 2 . . . Trap . | . . . . . . . . . . . Miscellaneous . | . . . . . . . . . . . Route ------- -11/Junkyard -10/Materials -9/Materials -9/Mines -8/Materials -8/Storage -7/Factory -7/DSF -6/Factory -6/Lower Caves -6/Lower Caves History --------- Turn | Location | Event 7 | -11/Junkyard | Discovered new exit (range 15) 57 | -11/Junkyard | Entered Materials 137 | -10/Materials | Discovered new exit (range 8) 164 | -10/Materials | Identified exit to Materials 165 | -10/Materials | Entered another Materials area 165 | -9/Materials | Evolved 2 slots: Utility x2 281 | -9/Materials | Discovered new exit (range 15) 297 | -9/Materials | Identified exit to Mines 297 | -9/Materials | Entered Mines 298 | -9/Mines | Assisted by bots powering up and referring to "LRC-V3" 312 | -9/Mines | Build established: Mutant 433 | -9/Mines | Met a Derelict who couldn't figure out how to use a Trap Extractor 514 | -9/Mines | Assembled infested the area 519 | -9/Mines | Assisted by a Guerilla fighting off Assembled 519 | -9/Mines | Discovered new exit (range 14) 540 | -9/Mines | Identified exit to Materials 541 | -9/Mines | Entered Materials 541 | -8/Materials | Evolved 2 slots: Propulsion x2 662 | -8/Materials | Discovered new exit (range 13) 670 | -8/Materials | Identified exit to Storage 671 | -8/Materials | Entered Storage 700 | -8/Storage | Lost 6 parts (1p2n2u1w) 925 | -8/Storage | Destroyed 8 combat bots 1021 | -8/Storage | Garrison activated, responded to threat 1114 | -8/Storage | Lost 8 parts (1p2n2u3w) 1155 | -8/Storage | Core integrity fell below 50% 1212 | -8/Storage | Core integrity fell below 20% 1225 | -8/Storage | Lost 3 parts (2n1w) 1304 | -8/Storage | Discovered new exit (range 9) 1309 | -8/Storage | Entered Factory 1309 | -7/Factory | Evolved 2 slots: Power x1, Utility x1 1475 | -7/Factory | Identified exit to DSF 1475 | -7/Factory | Entered DSF 1498 | -7/DSF | Additional patrols routed to DSF 1504 | -7/DSF | Core integrity fell below 50% 1526 | -7/DSF | Core integrity fell below 20% 1535 | -7/DSF | Discovered new exit (range 13) 1546 | -7/DSF | Lost 4 parts (1n2u1w) 1560 | -7/DSF | Entered Factory 1560 | -6/Factory | Evolved 2 slots: Utility x2 2075 | -6/Factory | Discovered new exit (range 13) 2093 | -6/Factory | Entered Lower Caves 2364 | -6/Lower Caves | Core integrity fell below 50% 2382 | -6/Lower Caves | Lost 8 parts (1p4n2u1w) 2431 | -6/Lower Caves | Attracted the attention of an 0b10 checkpoint 2450 | -6/Lower Caves | Core integrity fell below 20% 2498 | -6/Lower Caves | Lost 3 parts (1n2w) 2540 | -6/Lower Caves | Discovered new exit (range 21) 2555 | -6/Lower Caves | Learned Factory stockpile data 2560 | -6/Lower Caves | Entered another Lower Caves area 2568 | -6/Lower Caves | Destroyed by S-27 Virus with Autogun Last Messages --------------- 02455_ Acquired Arc Thrower. 02457_ Acquired 10 matter. 02460_ Acquired Mak. Transmission Jammer. 02463_ AL%PL 7IQ5R4UI:5SUC7PDUY:285 02464_ Acquired Com. Battery. 02467_ Arc Thrower destroyed. 02467_ Imp. Titanium Leg destroyed. 02486_ F62BT6A0